[Event "4NCL Div 2 2024-25"]
[Site "England"]
[Date "2025.04.06"]
[Round "8.11"]
[White "Dunn, Maxim"]
[Black "Maciol, Ryszard"]
[Result "1-0"]
[Annotator "ChessBase"]
[ECO "E04"]
[WhiteElo "1934"]
[BlackElo "2125"]
[PlyCount "79"]
[EventDate "2024.11.23"]
[EventType "team-tourn"]
[EventCountry "ENG"]
[SourceTitle "playchess.com"]
[Source "ChessBase"]
[SourceQuality "1"]
[TimeControl "40/6000+30:3000+30"]

1. d4 {[%emt 0:10:03]} e6 {[%emt 0:15:04]} 2. c4 {[%emt 0:00:07]} Nf6 {[%emt 0:00:12]} 3. Nf3 {[%emt 0:00:05]} d5 {[%emt 0:00:34]} 4. g3 {[%emt 0:00:07]} dxc4 {[%emt 0:03:22]} 5. Bg2 {[%emt 0:00:05]} a6 {[%emt 0:00:36]} 6. Ne5 {[%emt 0:00:05]} c5 {[%emt 0:03:41]} 7. dxc5 {[%emt 0:00:05]} Qxd1+ {[%emt 0:01:12]} 8. Kxd1 {[%emt 0:00:06]} Bxc5 {[%emt 0:00:32]} 9. Nd2 {[%emt 0:00:05]} Nbd7 {[%emt 0:05:16]} 10. Ndxc4 {[%emt 0:07:42]} Nxe5 {[%emt 1:15:01]} 11. Nxe5 {[%emt 0:00:06]} Ke7 {[%emt 0:00:00]} 12. Nd3 {[%emt 0:02:23]} Rd8 {[%emt 0:00:00]} 13. Bd2 {[%emt 0:07:15]} Bd6 {[%emt 0:00:00]} 14. Ba5 {[%emt 0:06:38]} Rd7 {[%emt 0:00:00]} 15. Rc1 {[%emt 0:04:42]} Ke8 {[%emt 0:00:00]} 16. Rc2 {[%emt 0:04:36]} Rb8 {[%emt 0:00:00]} 17. Kc1 {[%emt 0:07:06]} Nd5 {[%emt 0:00:00]} 18. e4 {[%emt 0:11:33]} Bc7 {[%emt 0:00:00]} 19. Nc5 {[%emt 0:17:01]} Rd6 {[%emt 0:00:00]} 20. Bxc7 {[%emt 0:10:43]} Nxc7 {[%emt 0:00:00]} 21. e5 {[%emt 0:00:07]} Rd8 {[%emt 0:00:00]} 22. Ne4 {[%emt 0:00:35]} Nb5 {[%emt 0:00:00]} 23. a4 {[%emt 0:00:30]} Nd4 {[%emt 0:00:00]} 24. Rc7 {[%emt 0:01:54]} Bd7 {[%emt 0:00:47]} 25. Nd6+ {[%emt 0:01:01]} Kf8 {[%emt 0:00:11]} 26. Kb1 {[%emt 0:04:25]} Bxa4 {[%emt 0:01:59]} 27. Rxf7+ {[%emt 0:01:40]} Kg8 {[%emt 0:00:03]} 28. Rxb7 {[%emt 0:00:53]} Bc2+ {[%emt 0:03:41]} 29. Kc1 {[%emt 0:01:52]} Bg6 {[%emt 0:00:26]} 30. b4 {[%emt 0:01:29]} Rxb7 {[%emt 0:01:53]} 31. Bxb7 {[%emt 0:00:12]} Rb8 {[%emt 0:00:12]} 32. Rd1 {[%emt 0:02:16]} Nb5 {[%emt 0:00:30]} 33. Nxb5 {[%emt 0:00:15]} axb5 {[%emt 0:00:27]} 34. Rd7 {[%emt 0:00:26]} Be8 {[%emt 0:01:11]} 35. Rc7 {[%emt 0:00:08]} Rd8 {[%emt 0:00:17]} 36. Rc8 {[%emt 0:00:20]} Rxc8+ {[%emt 0:00:15]} 37. Bxc8 {[%emt 0:00:02]} Kf7 {[%emt 0:00:13]} 38. Kd2 {[%emt 0:00:13]} Bc6 {[%emt 0:00:41]} 39. Ke3 {[%emt 0:00:16]} Bd5 {[%emt 0:01:00]} 40. Kd4 {[%emt 0:00:43]} 1-0

[Event "4NCL Div 2 2024-25"]
[Site "England"]
[Date "2025.04.06"]
[Round "8.12"]
[White "Horton, Jamie A"]
[Black "Cole, James"]
[Result "1-0"]
[Annotator "ChessBase"]
[ECO "D85"]
[WhiteElo "2163"]
[BlackElo "1974"]
[PlyCount "77"]
[EventDate "2024.11.23"]
[EventType "team-tourn"]
[EventCountry "ENG"]
[SourceTitle "playchess.com"]
[Source "ChessBase"]
[SourceQuality "1"]
[TimeControl "40/6000+30:3000+30"]

1. d4 {[%emt 0:19:40]} Nf6 {[%emt 0:10:08]} 2. c4 {[%emt 0:00:14]} g6 {[%emt 0:00:04]} 3. Nc3 {[%emt 0:00:20]} d5 {[%emt 0:00:05]} 4. cxd5 {[%emt 0:01:15]} Nxd5 {[%emt 0:00:06]} 5. e4 {[%emt 0:00:12]} Nxc3 {[%emt 0:00:07]} 6. bxc3 {[%emt 0:00:03]} Bg7 {[%emt 0:00:07]} 7. Nf3 {[%emt 0:01:48]} c5 {[%emt 0:00:11]} 8. h3 {[%emt 0:00:16]} O-O {[%emt 0:05:17]} 9. Be2 {[%emt 0:03:05]} cxd4 {[%emt 0:00:28]} 10. cxd4 {[%emt 0:00:35]} Nc6 {[%emt 0:00:09]} 11. Be3 {[%emt 0:00:21]} f5 {[%emt 0:00:10]} 12. O-O {[%emt 0:30:26]} f4 {[%emt 0:03:27]} 13. Bc4+ {[%emt 0:04:06]} e6 {[%emt 0:02:30]} 14. Bc1 {[%emt 0:08:31]} Nxd4 {[%emt 0:06:10]} 15. Ba3 {[%emt 0:01:37]} Re8 {[%emt 0:03:11]} 16. Rc1 {[%emt 0:10:49]} a6 {[%emt 0:11:22]} 17. Nxd4 {[%emt 0:04:23]} Qxd4 {[%emt 0:03:09]} 18. Qf3 {[%emt 0:00:12]} Bf8 {[%emt 0:03:49]} 19. Bxf8 {[%emt 0:12:10]} Rxf8 {[%emt 0:00:05]} 20. Bb3 {[%emt 0:00:10]} Qe5 {[%emt 0:03:58]} 21. Rfd1 {[%emt 0:00:41]} b5 {[%emt 0:06:39]} 22. Rc6 {[%emt 0:03:36]} Ra7 {[%emt 0:01:26]} 23. Rdc1 {[%emt 0:01:40]} Bd7 {[%emt 0:01:10]} 24. R6c5 {[%emt 0:00:13]} Qb8 {[%emt 0:01:49]} 25. Qg4 {[%emt 0:02:33]} Qd6 {[%emt 0:03:42]} 26. h4 {[%emt 0:01:44]} Kg7 {[%emt 0:04:32]} 27. h5 {[%emt 0:02:43]} e5 {[%emt 0:09:09]} 28. Qg5 {[%emt 0:00:05]} h6 {[%emt 0:01:12]} 29. Qxg6+ {[%emt 0:00:21]} Qxg6 {[%emt 0:00:06]} 30. hxg6 {[%emt 0:00:01]} Kxg6 {[%emt 0:00:33]} 31. Rxe5 {[%emt 0:00:18]} Re8 {[%emt 0:02:13]} 32. Rd5 {[%emt 0:00:59]} Be6 {[%emt 0:03:01]} 33. Rd6 {[%emt 0:00:14]} Kf7 {[%emt 0:00:05]} 34. Rxe6 {[%emt 0:00:41]} Rxe6 {[%emt 0:00:58]} 35. Rc6 {[%emt 0:00:04]} Rae7 {[%emt 0:00:33]} 36. Rxa6 {[%emt 0:00:10]} Kf6 {[%emt 0:00:37]} 37. Rxe6+ {[%emt 0:01:18]} Rxe6 {[%emt 0:00:06]} 38. Bxe6 {[%emt 0:00:06]} Kxe6 {[%emt 0:00:02]} 39. f3 {[%emt 0:00:51]} 1-0

[Event "4NCL Div 2 2024-25"]
[Site "England"]
[Date "2025.04.06"]
[Round "8.13"]
[White "Hughes, Roy"]
[Black "Serbanescu, Diana-Maria"]
[Result "1/2-1/2"]
[Annotator "NA"]
[ECO "A48"]
[WhiteElo "2008"]
[BlackElo "1992"]
[PlyCount "89"]
[EventDate "2024.11.23"]
[EventType "team-tourn"]
[EventCountry "ENG"]
[SourceTitle "playchess.com"]
[Source "ChessBase"]
[SourceQuality "1"]
[TimeControl "40/6000+30:3000+30"]

1. d4 {[%emt 0:10:12]} Nf6 {[%emt 0:10:52]} 2. Bf4 {[%emt 0:01:27]} g6 {[%emt 0:00:16]} 3. e3 {[%emt 0:00:31]} Bg7 {[%emt 0:00:30]} 4. Be2 {[%emt 0:00:50]} d6 {[%emt 0:01:52]} 5. Nf3 {[%emt 0:01:18]} O-O {[%emt 0:00:50]} 6. O-O {[%emt 0:02:31]} Nc6 {[%emt 0:03:07]} 7. c4 {[%emt 0:03:11]} e5 {[%emt 0:11:03]} 8. Bg5 {[%emt 0:25:10]} h6 {[%emt 0:03:25]} 9. Bh4 {[%emt 0:00:40]} g5 {[%emt 0:01:52]} 10. Bg3 {[%emt 0:00:10]} Ne4 {[%emt 0:00:57]} 11. Nc3 {[%emt 0:03:34]} Nxc3 {[%emt 0:05:58]} 12. bxc3 {[%emt 0:01:17]} Qe7 {[%emt 0:11:11]} 13. Re1 {[%emt 0:10:19]} f5 {[%emt 0:03:34]} 14. h3 {[%emt 0:00:18]} f4 {[%emt 0:12:11]} 15. exf4 {[%emt 0:02:08]} exf4 {[%emt 0:00:21]} 16. Bh2 {[%emt 0:00:10]} Qf6 {[%emt 0:00:51]} 17. Nd2 {[%emt 0:07:57]} Bf5 {[%emt 0:03:19]} 18. Bf3 {[%emt 0:01:08]} Kh8 {[%emt 0:03:00]} 19. Ne4 {[%emt 0:07:39]} Qf7 {[%emt 0:01:06]} 20. Qa4 {[%emt 0:04:16]} Nd8 {[%emt 0:02:30]} 21. Rac1 {[%emt 0:04:49]} Bd7 {[%emt 0:01:38]} 22. Qb3 {[%emt 0:01:41]} a5 {[%emt 0:02:05]} 23. a3 {[%emt 0:01:52]} Ra6 {[%emt 0:01:13]} 24. Qc2 {[%emt 0:01:34]} Be6 {[%emt 0:02:13]} 25. Nd2 {[%emt 0:02:57]} Bf5 {[%emt 0:03:32]} 26. Be4 {[%emt 0:01:17]} Bxe4 {[%emt 0:01:54]} 27. Qxe4 {[%emt 0:00:02]} Rb6 {[%emt 0:01:07]} 28. Rc2 {[%emt 0:01:00]} Nc6 {[%emt 0:02:05]} 29. f3 {[%emt 0:01:20]} a4 {[%emt 0:00:42]} 30. Kh1 {[%emt 0:00:26]} Na5 {[%emt 0:00:48]} 31. d5 {[%emt 0:05:33]} Nb3 {[%emt 0:19:58]} 32. Nb1 {[%emt 0:01:29]} Nc5 {[%emt 0:00:00]} 33. Qe2 {[%emt 0:00:12]} Rb3 {[%emt 0:00:00]} 34. Bg1 {[%emt 0:00:29]} Nd7 {[%emt 0:00:00]} 35. Qe4 {[%emt 0:03:35]} Nf6 {[%emt 0:00:00]} 36. Qe2 {[%emt 0:00:17]} Nh5 {[%emt 0:00:00]} 37. Qd1 {[%emt 0:00:25]} Ng3+ {[%emt 0:00:00]} 38. Kh2 {[%emt 0:00:01]} Nf5 {[%emt 0:00:00]} 39. Qc1 {[%emt 0:00:32]} Re8 {[%emt 0:00:00]} 40. Rxe8+ {[%emt 0:00:35]} Qxe8 {[%emt 0:00:00]} 41. Nd2 {[%emt 0:51:52]} Ne3 {[%emt 0:28:43]} 42. Nxb3 {[%emt 0:00:00]} Nxc2 {[%emt 0:02:29]} 43. Qxc2 {[%emt 0:00:00]} axb3 {[%emt 0:00:07]} 44. Qxb3 {[%emt 0:00:00]} b6 {[%emt 0:01:10]} 45. Bd4 {[%emt 0:00:00]} 1/2-1/2

[Event "4NCL Div 2 2024-25"]
[Site "England"]
[Date "2025.04.06"]
[Round "8.14"]
[White "Skulte, Christopher"]
[Black "Ortiz Sanchez, Luis"]
[Result "1/2-1/2"]
[Annotator "NA"]
[ECO "D00"]
[WhiteElo "2009"]
[BlackElo "1913"]
[PlyCount "151"]
[EventDate "2024.11.23"]
[EventType "team-tourn"]
[EventCountry "ENG"]
[SourceTitle "playchess.com"]
[Source "ChessBase"]
[SourceQuality "1"]
[TimeControl "40/6000+30:3000+30"]

1. d4 {[%emt 0:11:50]} d5 {[%emt 0:10:34]} 2. Nc3 {[%emt 0:01:09]} Nf6 {[%emt 0:00:25]} 3. Bf4 {[%emt 0:00:43]} e6 {[%emt 0:01:51]} 4. e3 {[%emt 0:00:52]} Bb4 {[%emt 0:02:50]} 5. Bd3 {[%emt 0:04:22]} c5 {[%emt 0:04:51]} 6. dxc5 {[%emt 0:03:51]} Bxc5 {[%emt 0:06:59]} 7. Nb5 {[%emt 0:14:41]} Na6 {[%emt 0:01:07]} 8. Nf3 {[%emt 0:05:23]} O-O {[%emt 0:01:00]} 9. O-O {[%emt 0:03:46]} Bd7 {[%emt 0:01:40]} 10. Ne5 {[%emt 0:04:52]} Nb4 {[%emt 0:01:28]} 11. Be2 {[%emt 0:04:39]} Bxb5 {[%emt 0:04:23]} 12. Bxb5 {[%emt 0:00:06]} Qb6 {[%emt 0:00:32]} 13. Ba4 {[%emt 0:06:13]} Bd6 {[%emt 0:03:43]} 14. Nc4 {[%emt 0:12:59]} dxc4 {[%emt 0:02:11]} 15. Qxd6 {[%emt 0:00:05]} Qa5 {[%emt 0:01:10]} 16. c3 {[%emt 0:02:51]} Nbd5 {[%emt 0:01:54]} 17. Bc2 {[%emt 0:02:51]} Nxf4 {[%emt 0:04:55]} 18. Qxf4 {[%emt 0:00:29]} Qc5 {[%emt 0:01:49]} 19. Rfd1 {[%emt 0:03:27]} Rfd8 {[%emt 0:01:05]} 20. Rxd8+ {[%emt 0:04:58]} Rxd8 {[%emt 0:00:17]} 21. Rd1 {[%emt 0:00:13]} Rxd1+ {[%emt 0:01:23]} 22. Bxd1 {[%emt 0:02:39]} e5 {[%emt 0:00:28]} 23. Qf5 {[%emt 0:01:25]} h6 {[%emt 0:04:16]} 24. a4 {[%emt 0:01:33]} b6 {[%emt 0:02:09]} 25. h4 {[%emt 0:01:54]} Kf8 {[%emt 0:03:10]} 26. g4 {[%emt 0:01:11]} Ke7 {[%emt 0:01:52]} 27. g5 {[%emt 0:00:46]} hxg5 {[%emt 0:00:15]} 28. hxg5 {[%emt 0:01:09]} Ne8 {[%emt 0:00:04]} 29. g6 {[%emt 0:05:32]} Nd6 {[%emt 0:03:41]} 30. Qh5 {[%emt 0:02:04]} f5 {[%emt 0:07:28]} 31. Qh4+ {[%emt 0:02:17]} Ke6 {[%emt 0:00:44]} 32. Qh8 {[%emt 0:03:45]} Kf6 {[%emt 0:00:34]} 33. Qh4+ {[%emt 0:00:24]} Ke6 {[%emt 0:00:04]} 34. Qh8 {[%emt 0:00:03]} Qc7 {[%emt 0:02:26]} 35. b3 {[%emt 0:00:48]} Qe7 {[%emt 0:00:24]} 36. f4 {[%emt 0:00:20]} exf4 {[%emt 0:00:14]} 37. exf4 {[%emt 0:00:09]} Kd7 {[%emt 0:00:19]} 38. Kf1 {[%emt 0:01:32]} Qf6 {[%emt 0:00:52]} 39. bxc4 {[%emt 0:01:05]} Qxc3 {[%emt 0:00:29]} 40. Qg8 {[%emt 0:00:25]} Qd4 {[%emt 0:00:57]} 41. Bf3 {[%emt 0:21:14]} Qxc4+ {[%emt 0:21:41]} 42. Qxc4 {[%emt 0:00:09]} Nxc4 {[%emt 0:00:05]} 43. Ke1 {[%emt 0:02:33]} Ke6 {[%emt 0:00:49]} 44. Bc6 {[%emt 0:00:35]} Kf6 {[%emt 0:00:28]} 45. Ke2 {[%emt 0:00:57]} Kxg6 {[%emt 0:01:26]} 46. Kd3 {[%emt 0:00:06]} Nd6 {[%emt 0:04:31]} 47. Kd4 {[%emt 0:00:26]} Kf6 {[%emt 0:00:20]} 48. Kd5 {[%emt 0:00:41]} Ne4 {[%emt 0:00:17]} 49. Bd7 {[%emt 0:00:17]} Nc5 {[%emt 0:00:25]} 50. Be8 {[%emt 0:00:33]} g5 {[%emt 0:00:12]} 51. fxg5+ {[%emt 0:00:26]} Kxg5 {[%emt 0:00:02]} 52. a5 {[%emt 0:00:10]} f4 {[%emt 0:00:44]} 53. axb6 {[%emt 0:00:08]} axb6 {[%emt 0:00:02]} 54. Kc6 {[%emt 0:00:52]} f3 {[%emt 0:00:45]} 55. Kxb6 {[%emt 0:00:12]} f2 {[%emt 0:01:01]} 56. Bb5 {[%emt 0:00:22]} Ne4 {[%emt 0:59:09]} 57. Kc6 {[%emt 0:01:25]} Kf4 {[%emt 0:00:00]} 58. Bf1 {[%emt 0:00:37]} Nd2 {[%emt 0:00:00]} 59. Ba6 {[%emt 0:00:15]} Ke4 {[%emt 0:00:00]} 60. Kc5 {[%emt 0:01:00]} Ke3 {[%emt 0:00:00]} 61. Kd5 {[%emt 0:01:35]} Ne4 {[%emt 0:00:00]} 62. Bf1 {[%emt 0:00:36]} Nc3+ {[%emt 0:00:00]} 63. Ke5 {[%emt 0:01:08]} Kf3 {[%emt 0:00:00]} 64. Kd4 {[%emt 0:00:41]} Ne2+ {[%emt 0:00:00]} 65. Kd3 {[%emt 0:00:58]} Ng3 {[%emt 0:00:00]} 66. Bh3 {[%emt 0:00:15]} Nf5 {[%emt 0:00:00]} 67. Bf1 {[%emt 0:01:40]} Ne3 {[%emt 0:00:00]} 68. Be2+ {[%emt 0:00:13]} Kf4 {[%emt 0:00:00]} 69. Bf1 {[%emt 0:01:47]} Nf5 {[%emt 0:00:00]} 70. Kd2 {[%emt 0:01:50]} Kf3 {[%emt 0:00:00]} 71. Be2+ {[%emt 0:02:43]} Kg2 {[%emt 0:00:00]} 72. Ba6 {[%emt 0:00:16]} Kf3 {[%emt 0:00:00]} 73. Be2+ {[%emt 0:02:06]} Kf4 {[%emt 0:00:00]} 74. Bf1 {[%emt 0:01:51]} Ng3 {[%emt 0:00:00]} 75. Bg2 {[%emt 0:01:00]} Nf5 {[%emt 0:00:00]} 76. Bf1 {[%emt 0:17:32]} 1/2-1/2

[Event "4NCL Div 2 2024-25"]
[Site "England"]
[Date "2025.04.06"]
[Round "8.15"]
[White "Gilmore, Simon N"]
[Black "Bryant, Harry"]
[Result "0-1"]
[Annotator "ChessBase"]
[ECO "A31"]
[WhiteElo "1959"]
[BlackElo "2128"]
[PlyCount "130"]
[EventDate "2024.11.23"]
[EventType "team-tourn"]
[EventCountry "ENG"]
[SourceTitle "playchess.com"]
[Source "ChessBase"]
[SourceQuality "1"]
[TimeControl "40/6000+30:3000+30"]

1. e4 {[%emt 0:10:03]} c5 {[%emt 0:12:46]} 2. c4 {[%emt 0:00:06]} Nc6 {[%emt 0:00:03]} 3. Ne2 {[%emt 0:00:10]} e6 {[%emt 0:00:04]} 4. d4 {[%emt 0:00:09]} cxd4 {[%emt 0:00:03]} 5. Nxd4 {[%emt 0:00:06]} Qb6 {[%emt 0:00:02]} 6. Nb3 {[%emt 0:01:34]} Nf6 {[%emt 0:01:05]} 7. Nc3 {[%emt 0:01:08]} Bb4 {[%emt 0:00:06]} 8. Be3 {[%emt 0:02:43]} Qd8 {[%emt 0:02:14]} 9. Qc2 {[%emt 0:05:29]} Ng4 {[%emt 0:05:35]} 10. Bc5 {[%emt 0:08:08]} Qg5 {[%emt 0:04:33]} 11. Bxb4 {[%emt 0:11:03]} Nxb4 {[%emt 0:00:08]} 12. Qe2 {[%emt 0:01:38]} O-O {[%emt 0:09:10]} 13. a3 {[%emt 0:06:03]} Nc6 {[%emt 0:00:14]} 14. f3 {[%emt 0:02:28]} Nxh2 {[%emt 0:01:41]} 15. Qd2 {[%emt 0:07:36]} Qg3+ {[%emt 0:03:23]} 16. Qf2 {[%emt 0:02:19]} Nxf1 {[%emt 0:00:05]} 17. Rxf1 {[%emt 0:00:16]} Qxf2+ {[%emt 0:00:09]} 18. Kxf2 {[%emt 0:00:21]} Ne5 {[%emt 0:00:33]} 19. Nd2 {[%emt 0:01:08]} b6 {[%emt 0:01:12]} 20. Ke3 {[%emt 0:03:27]} Bb7 {[%emt 0:03:26]} 21. Rac1 {[%emt 0:02:29]} f5 {[%emt 0:00:32]} 22. Rfd1 {[%emt 0:02:22]} f4+ {[%emt 0:06:01]} 23. Ke2 {[%emt 0:01:28]} Kf7 {[%emt 0:03:31]} 24. Nb5 {[%emt 0:02:52]} Bc6 {[%emt 0:01:22]} 25. Nd4 {[%emt 0:01:58]} Ke7 {[%emt 0:03:20]} 26. b4 {[%emt 0:03:22]} g5 {[%emt 0:01:39]} 27. Rh1 {[%emt 0:02:04]} Rh8 {[%emt 0:01:21]} 28. Rh5 {[%emt 0:04:03]} h6 {[%emt 0:01:38]} 29. Rch1 {[%emt 0:02:10]} Nf7 {[%emt 0:00:46]} 30. Rc1 {[%emt 0:01:19]} Kf6 {[%emt 0:00:27]} 31. c5 {[%emt 0:01:48]} Ne5 {[%emt 0:02:34]} 32. Nc4 {[%emt 0:04:12]} bxc5 {[%emt 0:01:14]} 33. Nxe5 {[%emt 0:01:29]} cxd4 {[%emt 0:00:50]} 34. Nxc6 {[%emt 0:00:31]} Rac8 {[%emt 0:00:42]} 35. e5+ {[%emt 0:02:00]} Kg7 {[%emt 0:00:09]} 36. Kd3 {[%emt 0:00:49]} Rxc6 {[%emt 0:00:39]} 37. Rxc6 {[%emt 0:05:27]} dxc6 {[%emt 0:00:04]} 38. Rh1 {[%emt 0:00:16]} Kg6 {[%emt 0:05:00]} 39. Rc1 {[%emt 0:00:43]} Rc8 {[%emt 0:01:59]} 40. Rc5 {[%emt 0:02:51]} a6 {[%emt 0:02:02]} 41. Kxd4 {[%emt 0:51:17]} Kf5 {[%emt 0:51:02]} 42. Ra5 {[%emt 0:01:08]} Rd8+ {[%emt 0:07:12]} 43. Kc3 {[%emt 0:03:15]} Rd1 {[%emt 0:00:33]} 44. Rxa6 {[%emt 0:00:17]} Kxe5 {[%emt 0:00:28]} 45. a4 {[%emt 0:02:59]} Rg1 {[%emt 0:00:41]} 46. Kc4 {[%emt 0:02:30]} Rxg2 {[%emt 0:00:33]} 47. Rxc6 {[%emt 0:00:14]} Rc2+ {[%emt 0:04:21]} 48. Kb5 {[%emt 0:00:09]} Rxc6 {[%emt 0:27:18]} 49. Kxc6 {[%emt 0:00:05]} g4 {[%emt 0:00:00]} 50. b5 {[%emt 0:00:58]} gxf3 {[%emt 0:00:00]} 51. b6 {[%emt 0:00:09]} f2 {[%emt 0:00:00]} 52. b7 {[%emt 0:00:05]} f1=Q {[%emt 0:00:00]} 53. b8=Q+ {[%emt 0:00:07]} Kf5 {[%emt 0:00:00]} 54. Qf8+ {[%emt 0:01:53]} Kg4 {[%emt 0:00:00]} 55. Qxh6 {[%emt 0:00:26]} Qc4+ {[%emt 0:00:00]} 56. Kb6 {[%emt 0:01:12]} Qb4+ {[%emt 0:00:00]} 57. Kc7 {[%emt 0:00:35]} Qc3+ {[%emt 0:00:00]} 58. Kb6 {[%emt 0:01:05]} Qd4+ {[%emt 0:00:00]} 59. Kc7 {[%emt 0:00:37]} Qe5+ {[%emt 0:00:00]} 60. Kb6 {[%emt 0:00:00]} f3 {[%emt 0:00:00]} 61. Qg6+ {[%emt 0:00:00]} Kf4 {[%emt 0:00:00]} 62. a5 {[%emt 0:00:00]} f2 {[%emt 0:00:00]} 63. Qh6+ {[%emt 0:00:00]} Kg3 {[%emt 0:00:00]} 64. Qg6+ {[%emt 0:00:00]} Kf3 {[%emt 0:00:00]} 65. Qf7+ {[%emt 0:00:00]} Ke2 {[%emt 0:00:00]} 0-1

[Event "4NCL Div 2 2024-25"]
[Site "England"]
[Date "2025.04.06"]
[Round "8.16"]
[White "Lea, Daniel J"]
[Black "Calvert, D Ian"]
[Result "1-0"]
[Annotator "NA"]
[ECO "D94"]
[WhiteElo "2006"]
[BlackElo "1937"]
[PlyCount "63"]
[EventDate "2024.11.23"]
[EventType "team-tourn"]
[EventCountry "ENG"]
[SourceTitle "playchess.com"]
[Source "ChessBase"]
[SourceQuality "1"]
[TimeControl "40/6000+30:3000+30"]

1. d4 {[%emt 0:10:04]} d5 {[%emt 0:10:08]} 2. c4 {[%emt 0:00:13]} c6 {[%emt 0:00:06]} 3. Nf3 {[%emt 0:00:10]} Nf6 {[%emt 0:00:08]} 4. e3 {[%emt 0:00:10]} g6 {[%emt 0:00:06]} 5. Nc3 {[%emt 0:00:16]} Bg7 {[%emt 0:00:11]} 6. Be2 {[%emt 0:00:42]} O-O {[%emt 0:00:15]} 7. O-O {[%emt 0:00:33]} dxc4 {[%emt 0:02:29]} 8. Bxc4 {[%emt 0:00:05]} Bg4 {[%emt 0:00:31]} 9. h3 {[%emt 0:00:23]} Bxf3 {[%emt 0:00:08]} 10. Qxf3 {[%emt 0:00:04]} Nbd7 {[%emt 0:00:25]} 11. e4 {[%emt 0:01:01]} Nb6 {[%emt 0:00:59]} 12. Qd3 {[%emt 0:00:50]} Nxc4 {[%emt 0:00:57]} 13. Qxc4 {[%emt 0:00:04]} b5 {[%emt 0:00:36]} 14. Qd3 {[%emt 0:06:58]} b4 {[%emt 0:02:57]} 15. Ne2 {[%emt 0:11:52]} e5 {[%emt 0:01:00]} 16. Bg5 {[%emt 0:06:55]} h6 {[%emt 0:01:30]} 17. Bxf6 {[%emt 0:01:29]} Bxf6 {[%emt 0:00:37]} 18. f4 {[%emt 0:11:11]} exd4 {[%emt 0:02:40]} 19. e5 {[%emt 0:00:22]} Be7 {[%emt 0:01:11]} 20. f5 {[%emt 0:02:27]} g5 {[%emt 0:02:39]} 21. f6 {[%emt 0:01:55]} Bc5 {[%emt 0:02:03]} 22. e6 {[%emt 0:09:00]} Qd5 {[%emt 0:01:06]} 23. e7 {[%emt 0:04:16]} Rfe8 {[%emt 0:03:22]} 24. Rf5 {[%emt 0:01:46]} Qd6 {[%emt 0:00:16]} 25. Ng3 {[%emt 0:07:38]} Bb6 {[%emt 0:01:11]} 26. Ne4 {[%emt 0:00:47]} Qe6 {[%emt 0:01:16]} 27. Raf1 {[%emt 0:05:30]} c5 {[%emt 0:01:56]} 28. Qf3 {[%emt 0:03:54]} c4 {[%emt 0:04:50]} 29. Qh5 {[%emt 0:03:19]} Qxe4 {[%emt 0:02:34]} 30. Qxh6 {[%emt 0:00:11]} d3+ {[%emt 0:00:24]} 31. Kh1 {[%emt 0:00:16]} Be3 {[%emt 0:00:34]} 32. Qg7# {[%emt 0:00:07]} 1-0

[Event "4NCL Div 2 2024-25"]
[Site "England"]
[Date "2025.04.06"]
[Round "8.17"]
[White "Korshunov, Sergey And."]
[Black "Burnett, Andrew"]
[Result "1-0"]
[Annotator "ChessBase"]
[ECO "E63"]
[WhiteElo "2330"]
[BlackElo "2175"]
[PlyCount "67"]
[EventDate "2024.11.23"]
[EventType "team-tourn"]
[EventCountry "ENG"]
[SourceTitle "playchess.com"]
[Source "ChessBase"]
[SourceQuality "1"]
[TimeControl "40/6000+30:3000+30"]

1. Nf3 {[%emt 0:10:02]} Nf6 {[%emt 0:10:13]} 2. d4 {[%emt 0:00:18]} g6 {[%emt 0:00:07]} 3. g3 {[%emt 0:00:23]} Bg7 {[%emt 0:01:33]} 4. Bg2 {[%emt 0:00:06]} O-O {[%emt 0:00:04]} 5. O-O {[%emt 0:02:35]} d6 {[%emt 0:00:36]} 6. c4 {[%emt 0:00:23]} Nc6 {[%emt 0:00:09]} 7. Nc3 {[%emt 0:00:21]} a6 {[%emt 0:00:27]} 8. h3 {[%emt 0:01:30]} Rb8 {[%emt 0:01:55]} 9. e4 {[%emt 0:01:17]} Bd7 {[%emt 0:02:43]} 10. e5 {[%emt 0:13:38]} Ne8 {[%emt 0:01:54]} 11. Qe2 {[%emt 0:07:03]} b5 {[%emt 0:02:34]} 12. b3 {[%emt 0:02:42]} bxc4 {[%emt 0:02:17]} 13. bxc4 {[%emt 0:00:05]} Qc8 {[%emt 0:02:31]} 14. Kh2 {[%emt 0:03:34]} dxe5 {[%emt 0:08:25]} 15. dxe5 {[%emt 0:00:11]} Be6 {[%emt 0:00:41]} 16. Bf4 {[%emt 0:09:24]} h6 {[%emt 0:09:15]} 17. Qe4 {[%emt 0:15:48]} Rb4 {[%emt 0:05:52]} 18. Nd2 {[%emt 0:04:59]} Na5 {[%emt 0:04:46]} 19. Nd5 {[%emt 0:04:23]} Bxd5 {[%emt 0:00:08]} 20. Qxd5 {[%emt 0:00:04]} c5 {[%emt 0:01:00]} 21. Be3 {[%emt 0:02:02]} Rb2 {[%emt 0:01:53]} 22. Rfb1 {[%emt 0:03:22]} Rc2 {[%emt 0:02:01]} 23. Qd3 {[%emt 0:04:02]} Rxd2 {[%emt 0:00:39]} 24. Bxd2 {[%emt 0:00:04]} Nc6 {[%emt 0:00:22]} 25. f4 {[%emt 0:00:06]} Nd4 {[%emt 0:00:26]} 26. Bc3 {[%emt 0:01:48]} h5 {[%emt 0:02:42]} 27. Rb7 {[%emt 0:08:20]} h4 {[%emt 0:00:53]} 28. g4 {[%emt 0:00:10]} Nc7 {[%emt 0:00:23]} 29. Qe4 {[%emt 0:01:01]} Nce6 {[%emt 0:01:56]} 30. Rf1 {[%emt 0:01:48]} g5 {[%emt 0:00:42]} 31. f5 {[%emt 0:02:11]} Nf4 {[%emt 0:00:11]} 32. Rxf4 {[%emt 0:01:06]} gxf4 {[%emt 0:00:34]} 33. Qxf4 {[%emt 0:00:27]} Ne2 {[%emt 0:01:52]} 34. Qg5 {[%emt 0:00:55]} 1-0